[Event "Live Chess"]
[Site "Chess.com"]
[Date "2023.05.21"]
[Round "-"]
[White "GEMdzq"]
[Black "LanceMaster23"]
[Result "0-1"]
[WhiteElo "2269"]
[BlackElo "1927"]
[TimeControl "300"]
[EndTime "17:57:57 PDT"]
[Termination "LanceMaster23 won by checkmate"]

1. e4 {[%clk 0:04:58.5]} 1... c5 {[%clk 0:04:58.8]} 2. d4 {[%clk 0:04:57.5]}
2... cxd4 {[%clk 0:04:58]} 3. c3 {[%clk 0:04:57.2]} 3... d3 {[%clk 0:04:57.8]}
4. Bxd3 {[%clk 0:04:55]} 4... Nc6 {[%clk 0:04:57.4]} 5. Bc4 {[%clk 0:04:54.5]}
5... Qc7 {[%clk 0:04:55.5]} 6. Nf3 {[%clk 0:04:53.7]} 6... Nf6 {[%clk
0:04:54.4]} 7. Qe2 {[%clk 0:04:51.3]} 7... d6 {[%clk 0:04:53]} 8. h3 {[%clk
0:04:50]} 8... a6 {[%clk 0:04:49.1]} 9. O-O {[%clk 0:04:48.3]} 9... e6 {[%clk
0:04:47.6]} 10. Bg5 {[%clk 0:04:45.1]} 10... Be7 {[%clk 0:04:46.7]} 11. Nbd2
{[%clk 0:04:43.5]} 11... b5 {[%clk 0:04:45.4]} 12. Bb3 {[%clk 0:04:42.3]} 12...
Bb7 {[%clk 0:04:45]} 13. Rac1 {[%clk 0:04:36.7]} 13... O-O {[%clk 0:04:39.8]}
14. c4 {[%clk 0:04:35.5]} 14... b4 {[%clk 0:04:34.9]} 15. Bf4 {[%clk 0:04:33.6]}
15... e5 {[%clk 0:04:30.6]} 16. Be3 {[%clk 0:04:32.8]} 16... Na5 {[%clk
0:04:27.8]} 17. Bc2 {[%clk 0:03:47.2]} 17... Rac8 {[%clk 0:04:07.5]} 18. b3
{[%clk 0:03:39.6]} 18... Nc6 {[%clk 0:03:38.2]} 19. Bb1 {[%clk 0:03:34.7]} 19...
a5 {[%clk 0:03:28]} 20. Rfd1 {[%clk 0:03:32.2]} 20... Nd8 {[%clk 0:03:15.5]} 21.
Bg5 {[%clk 0:03:21.3]} 21... Ne6 {[%clk 0:03:14.2]} 22. Nf1 {[%clk 0:03:12.4]}
22... Nc5 {[%clk 0:03:07.5]} 23. Ng3 {[%clk 0:03:03.1]} 23... g6 {[%clk
0:01:57.2]} 24. Rd2 {[%clk 0:02:54.6]} 24... Rfd8 {[%clk 0:01:55]} 25. Rcd1
{[%clk 0:02:53.1]} 25... a4 {[%clk 0:01:51.2]} 26. Qe3 {[%clk 0:02:29.8]} 26...
axb3 {[%clk 0:01:26]} 27. axb3 {[%clk 0:02:28.4]} 27... Ra8 {[%clk 0:01:25.5]}
28. Nh2 {[%clk 0:02:26.1]} 28... Ra3 {[%clk 0:01:22]} 29. Bc2 {[%clk 0:02:24.5]}
29... Ba6 {[%clk 0:01:07.9]} 30. Ng4 {[%clk 0:01:43.9]} 30... Nxg4 {[%clk
0:01:03]} 31. hxg4 {[%clk 0:01:43.8]} 31... Bxc4 {[%clk 0:01:01.8]} 32. Bxe7
{[%clk 0:01:41.2]} 32... Qxe7 {[%clk 0:01:00.7]} 33. Qxc5 {[%clk 0:01:32.2]}
33... dxc5 {[%clk 0:00:46.3]} 34. Rxd8+ {[%clk 0:01:32.1]} 34... Kg7 {[%clk
0:00:44.1]} 35. bxc4 {[%clk 0:01:31.5]} 35... Rc3 {[%clk 0:00:41.7]} 36. R1d7
{[%clk 0:01:15.8]} 36... Qe6 {[%clk 0:00:36.8]} 37. Bd3 {[%clk 0:01:08]} 37...
b3 {[%clk 0:00:34.5]} 38. Ne2 {[%clk 0:00:58.1]} 38... Rxd3 {[%clk 0:00:32]} 39.
Rxd3 {[%clk 0:00:56.8]} 39... Qxc4 {[%clk 0:00:31.7]} 40. Nc3 {[%clk 0:00:52.8]}
40... b2 {[%clk 0:00:29]} 41. Kh2 {[%clk 0:00:52]} 41... Qxc3 {[%clk 0:00:26.5]}
42. Rxc3 {[%clk 0:00:50.5]} 42... b1=Q {[%clk 0:00:26.1]} 43. f3 {[%clk
0:00:44.3]} 43... Qb4 {[%clk 0:00:25.1]} 44. Rc2 {[%clk 0:00:34.2]} 44... Qe1
{[%clk 0:00:22.8]} 45. Rdd2 {[%clk 0:00:25.4]} 45... Qe3 {[%clk 0:00:19.5]} 46.
Re2 {[%clk 0:00:23.9]} 46... Qf4+ {[%clk 0:00:18.9]} 47. Kg1 {[%clk 0:00:23.2]}
47... h5 {[%clk 0:00:18.1]} 48. gxh5 {[%clk 0:00:21.8]} 48... gxh5 {[%clk
0:00:17.7]} 49. Rxc5 {[%clk 0:00:20.4]} 49... h4 {[%clk 0:00:16.2]} 50. Kf2
{[%clk 0:00:18.9]} 50... Qg3+ {[%clk 0:00:15]} 51. Kf1 {[%clk 0:00:18]} 51... h3
{[%clk 0:00:13.6]} 52. gxh3 {[%clk 0:00:17.4]} 52... Qxh3+ {[%clk 0:00:13.5]}
53. Rg2+ {[%clk 0:00:16.7]} 53... Kf6 {[%clk 0:00:12.5]} 54. Kf2 {[%clk
0:00:14.9]} 54... Qh4+ {[%clk 0:00:11.3]} 55. Ke2 {[%clk 0:00:14.3]} 55... Qf4
{[%clk 0:00:10.2]} 56. Rc2 {[%clk 0:00:12.8]} 56... Ke6 {[%clk 0:00:09.3]} 57.
Rd2 {[%clk 0:00:12.1]} 57... f5 {[%clk 0:00:08.6]} 58. Kd1 {[%clk 0:00:11.5]}
58... fxe4 {[%clk 0:00:07.9]} 59. fxe4 {[%clk 0:00:11.4]} 59... Qxe4 {[%clk
0:00:06.3]} 60. Rge2 {[%clk 0:00:11.3]} 60... Qb1# {[%clk 0:00:05.6]} 0-1

[Event "Live Chess"]
[Site "Chess.com"]
[Date "2023.05.21"]
[Round "-"]
[White "Tushinskiy"]
[Black "raminguy"]
[Result "1-0"]
[WhiteElo "2165"]
[BlackElo "1940"]
[TimeControl "300"]
[EndTime "17:58:14 PDT"]
[Termination "Tushinskiy won by resignation"]

1. d4 {[%clk 0:04:58.4]} 1... d5 {[%clk 0:04:58.7]} 2. c3 {[%clk 0:04:58.3]}
2... Nf6 {[%clk 0:04:57]} 3. Nf3 {[%clk 0:04:58.2]} 3... e6 {[%clk 0:04:55.8]}
4. Bf4 {[%clk 0:04:57.6]} 4... c5 {[%clk 0:04:54.5]} 5. Bg3 {[%clk 0:04:57.5]}
5... cxd4 {[%clk 0:04:53.4]} 6. cxd4 {[%clk 0:04:57.4]} 6... Nc6 {[%clk
0:04:52.4]} 7. e3 {[%clk 0:04:56.8]} 7... Bb4+ {[%clk 0:04:50.7]} 8. Nbd2 {[%clk
0:04:55.7]} 8... O-O {[%clk 0:04:49.3]} 9. Bd3 {[%clk 0:04:54.6]} 9... Bd6
{[%clk 0:04:46.7]} 10. O-O {[%clk 0:04:53.6]} 10... Re8 {[%clk 0:04:45.7]} 11.
Rc1 {[%clk 0:04:52.4]} 11... e5 {[%clk 0:04:44.3]} 12. dxe5 {[%clk 0:04:51]}
12... Nxe5 {[%clk 0:04:43.1]} 13. Nxe5 {[%clk 0:04:50.4]} 13... Bxe5 {[%clk
0:04:43]} 14. Nf3 {[%clk 0:04:49.8]} 14... Bxg3 {[%clk 0:04:41.3]} 15. hxg3
{[%clk 0:04:49.7]} 15... Bg4 {[%clk 0:04:34.5]} 16. Qb3 {[%clk 0:04:48.1]} 16...
Qb6 {[%clk 0:04:19.1]} 17. Qxb6 {[%clk 0:04:46.5]} 17... axb6 {[%clk 0:04:17.8]}
18. a3 {[%clk 0:04:45.9]} 18... Rac8 {[%clk 0:04:16.1]} 19. Nd4 {[%clk
0:04:44.6]} 19... Bh5 {[%clk 0:03:56.9]} 20. Rfe1 {[%clk 0:04:34]} 20... Bg6
{[%clk 0:03:54.5]} 21. Bxg6 {[%clk 0:04:30.6]} 21... hxg6 {[%clk 0:03:54.4]} 22.
Kf1 {[%clk 0:04:29]} 22... Kf8 {[%clk 0:03:52.6]} 23. Ke2 {[%clk 0:04:28.2]}
23... Rc5 {[%clk 0:03:45.9]} 24. b4 {[%clk 0:04:25.4]} 24... Rc4 {[%clk
0:03:44.5]} 25. Rxc4 {[%clk 0:04:22.6]} 25... dxc4 {[%clk 0:03:42.7]} 26. Rc1
{[%clk 0:04:21.9]} 26... Rc8 {[%clk 0:03:40.9]} 27. f3 {[%clk 0:04:19.7]} 27...
Ke7 {[%clk 0:03:34.5]} 28. e4 {[%clk 0:04:18.5]} 28... Nd7 {[%clk 0:03:31.7]}
29. f4 {[%clk 0:04:13.3]} 29... Ra8 {[%clk 0:03:27.3]} 30. Rc3 {[%clk
0:04:08.4]} 30... Rg8 {[%clk 0:03:19.8]} 31. Rxc4 {[%clk 0:04:06]} 31... Ra8
{[%clk 0:03:18.5]} 32. Rc3 {[%clk 0:04:04.6]} 32... Nf6 {[%clk 0:03:17.1]} 33.
Kf3 {[%clk 0:03:53.3]} 33... Kd8 {[%clk 0:03:13.5]} 34. Nb5 {[%clk 0:03:48.7]}
34... Rc8 {[%clk 0:03:04.7]} 35. Rd3+ {[%clk 0:03:47.2]} 35... Ke7 {[%clk
0:03:02.7]} 36. e5 {[%clk 0:03:42]} 36... Nd7 {[%clk 0:02:59.3]} 37. g4 {[%clk
0:03:40.7]} 37... f6 {[%clk 0:02:56.3]} 38. exf6+ {[%clk 0:03:30.3]} 38... gxf6
{[%clk 0:02:55]} 39. Nd6 {[%clk 0:03:28]} 39... Rc7 {[%clk 0:02:49.3]} 40. Nb5
{[%clk 0:03:24.7]} 40... Rc8 {[%clk 0:02:47.4]} 41. g3 {[%clk 0:03:24]} 41... g5
{[%clk 0:02:45.2]} 42. Nd6 {[%clk 0:03:19.8]} 42... Rc6 {[%clk 0:02:40.1]} 43.
Nf5+ {[%clk 0:03:15.7]} 43... Ke8 {[%clk 0:02:38.5]} 44. Nd6+ {[%clk 0:03:02.3]}
44... Ke7 {[%clk 0:02:37.1]} 45. Nxb7 {[%clk 0:02:59.2]} 45... Rc1 {[%clk
0:02:32.6]} 46. Nd6 {[%clk 0:02:54]} 46... Rf1+ {[%clk 0:02:29.9]} 47. Kg2
{[%clk 0:02:52.6]} 47... Ra1 {[%clk 0:02:28.5]} 48. Nf5+ {[%clk 0:02:50.1]}
48... Ke6 {[%clk 0:02:26.7]} 49. Re3+ {[%clk 0:02:44.6]} 49... Kf7 {[%clk
0:02:23.6]} 50. Re7+ {[%clk 0:02:42.6]} 1-0

[Event "Live Chess"]
[Site "Chess.com"]
[Date "2023.05.21"]
[Round "-"]
[White "KGreenGator"]
[Black "xx_blindpuffin_xx"]
[Result "0-1"]
[WhiteElo "1801"]
[BlackElo "2198"]
[TimeControl "300"]
[EndTime "17:58:42 PDT"]
[Termination "xx_blindpuffin_xx won by resignation"]

1. c4 {[%clk 0:04:58.4]} 1... e6 {[%clk 0:04:56.8]} 2. Nc3 {[%clk 0:04:56.9]}
2... f5 {[%clk 0:04:50.3]} 3. d4 {[%clk 0:04:55.7]} 3... Nf6 {[%clk 0:04:49.7]}
4. Nf3 {[%clk 0:04:53.5]} 4... Be7 {[%clk 0:04:49.1]} 5. Bd2 {[%clk 0:04:51.8]}
5... O-O {[%clk 0:04:48.3]} 6. e3 {[%clk 0:04:48.7]} 6... d6 {[%clk 0:04:47.7]}
7. Bd3 {[%clk 0:04:46.9]} 7... Nc6 {[%clk 0:04:43.7]} 8. a3 {[%clk 0:04:44.8]}
8... e5 {[%clk 0:04:41.9]} 9. dxe5 {[%clk 0:04:43]} 9... dxe5 {[%clk 0:04:41.8]}
10. Bc2 {[%clk 0:04:38.3]} 10... e4 {[%clk 0:04:39.8]} 11. Ng1 {[%clk
0:04:35.2]} 11... Ne5 {[%clk 0:04:38.2]} 12. b3 {[%clk 0:04:33]} 12... Be6
{[%clk 0:04:36.6]} 13. Nge2 {[%clk 0:04:30.6]} 13... c6 {[%clk 0:04:31.2]} 14.
Nd4 {[%clk 0:04:29.6]} 14... Qc8 {[%clk 0:04:22.2]} 15. Nxe6 {[%clk 0:04:27.8]}
15... Qxe6 {[%clk 0:04:20.7]} 16. O-O {[%clk 0:04:25.2]} 16... Rad8 {[%clk
0:04:17.8]} 17. Qe2 {[%clk 0:04:22]} 17... Bd6 {[%clk 0:04:12]} 18. Na4 {[%clk
0:04:13.5]} 18... b5 {[%clk 0:03:49.1]} 19. cxb5 {[%clk 0:04:11.3]} 19... cxb5
{[%clk 0:03:49]} 20. Qxb5 {[%clk 0:04:09.3]} 20... Bb8 {[%clk 0:03:47.7]} 21.
Bc3 {[%clk 0:04:01.4]} 21... Nfg4 {[%clk 0:03:43.9]} 22. b4 {[%clk 0:03:48.1]}
22... Nf3+ {[%clk 0:03:30.6]} 23. gxf3 {[%clk 0:03:41.8]} 23... Qh6 {[%clk
0:03:28.9]} 24. Bb3+ {[%clk 0:03:26.8]} 24... Kh8 {[%clk 0:03:26.1]} 25. Bxg7+
{[%clk 0:02:55.6]} 25... Kxg7 {[%clk 0:03:24.2]} 26. Qb7+ {[%clk 0:02:50]} 26...
Kh8 {[%clk 0:03:23.1]} 0-1

[Event "Live Chess"]
[Site "Chess.com"]
[Date "2023.05.21"]
[Round "-"]
[White "Cimon"]
[Black "Long1968"]
[Result "1-0"]
[WhiteElo "1854"]
[BlackElo "1111"]
[TimeControl "300"]
[EndTime "17:59:11 PDT"]
[Termination "Cimon won on time"]

1. e4 {[%clk 0:04:55.6]} 1... e6 {[%clk 0:04:57.1]} 2. d4 {[%clk 0:04:54.1]}
2... d5 {[%clk 0:04:54.9]} 3. Nc3 {[%clk 0:04:52.8]} 3... Bb4 {[%clk 0:04:51.7]}
4. e5 {[%clk 0:04:51.4]} 4... c5 {[%clk 0:04:49.1]} 5. h4 {[%clk 0:04:50]} 5...
cxd4 {[%clk 0:04:44.5]} 6. Qxd4 {[%clk 0:04:47.6]} 6... Nc6 {[%clk 0:04:40.8]}
7. Bb5 {[%clk 0:04:45.8]} 7... Qa5 {[%clk 0:04:23.9]} 8. Bxc6+ {[%clk
0:04:40.1]} 8... bxc6 {[%clk 0:04:20.2]} 9. Ne2 {[%clk 0:04:31.5]} 9... Ba6
{[%clk 0:04:11.2]} 10. Bg5 {[%clk 0:04:03.5]} 10... Bxe2 {[%clk 0:03:25.1]} 11.
Kxe2 {[%clk 0:04:00.6]} 11... c5 {[%clk 0:03:11]} 12. Qf4 {[%clk 0:03:52]} 12...
Bxc3 {[%clk 0:02:49.5]} 13. bxc3 {[%clk 0:03:49.7]} 13... Qxc3 {[%clk
0:02:46.8]} 14. Qd2 {[%clk 0:03:32.9]} 14... Qxe5+ {[%clk 0:02:42.5]} 15. Kf3
{[%clk 0:03:19.3]} 15... Qe4+ {[%clk 0:02:18.3]} 16. Kg3 {[%clk 0:03:16.8]}
16... Nf6 {[%clk 0:02:01.5]} 17. Rhe1 {[%clk 0:03:08.4]} 17... Qg4+ {[%clk
0:01:35.6]} 18. Kh2 {[%clk 0:03:06.1]} 18... Ne4 {[%clk 0:01:22.6]} 19. Qe3
{[%clk 0:02:50.9]} 19... Nxg5 {[%clk 0:00:50.2]} 20. hxg5 {[%clk 0:02:48.9]}
20... h6 {[%clk 0:00:36.1]} 21. gxh6 {[%clk 0:02:31.9]} 21... Rxh6+ {[%clk
0:00:31.4]} 22. Kg1 {[%clk 0:02:30.3]} 22... Ke7 {[%clk 0:00:18.2]} 23. Qxc5+
{[%clk 0:02:27.4]} 23... Kf6 {[%clk 0:00:08.9]} 24. Rab1 {[%clk 0:02:02.6]}
24... Rah8 {[%clk 0:00:01.4]} 25. Qc3+ {[%clk 0:01:52.2]} 1-0

[Event "Live Chess"]
[Site "Chess.com"]
[Date "2023.05.21"]
[Round "-"]
[White "garyjc"]
[Black "alanmike75"]
[Result "0-1"]
[WhiteElo "1035"]
[BlackElo "1567"]
[TimeControl "300"]
[EndTime "17:59:12 PDT"]
[Termination "alanmike75 won - game abandoned"]

1. e4 {[%clk 0:04:56.1]} 1... e5 {[%clk 0:04:58.5]} 2. Nf3 {[%clk 0:04:53.8]}
2... d6 {[%clk 0:04:57.1]} 3. d4 {[%clk 0:04:52.2]} 3... exd4 {[%clk 0:04:55.4]}
4. Nxd4 {[%clk 0:04:40.9]} 4... Nf6 {[%clk 0:04:53.7]} 5. Nc3 {[%clk 0:04:38.5]}
5... Be7 {[%clk 0:04:52.5]} 6. Bb5+ {[%clk 0:04:27.6]} 6... c6 {[%clk
0:04:50.7]} 7. Be2 {[%clk 0:04:25.5]} 7... O-O {[%clk 0:04:49.2]} 8. Bf4 {[%clk
0:04:15.4]} 8... d5 {[%clk 0:04:45.4]} 9. e5 {[%clk 0:04:07.8]} 9... Ne8 {[%clk
0:04:35.9]} 10. Qd2 {[%clk 0:03:58.3]} 10... a6 {[%clk 0:04:14.1]} 0-1

[Event "Live Chess"]
[Site "Chess.com"]
[Date "2023.05.21"]
[Round "-"]
[White "wot-not"]
[Black "Conradical12"]
[Result "0-1"]
[WhiteElo "1541"]
[BlackElo "1637"]
[TimeControl "300"]
[EndTime "17:59:14 PDT"]
[Termination "Conradical12 won by resignation"]

1. e4 {[%clk 0:04:55.7]} 1... e5 {[%clk 0:04:58.7]} 2. f4 {[%clk 0:04:52]} 2...
exf4 {[%clk 0:04:56.4]} 3. Nf3 {[%clk 0:04:50.8]} 3... g5 {[%clk 0:04:55.2]} 4.
Bc4 {[%clk 0:04:49.2]} 4... h6 {[%clk 0:04:54.3]} 5. O-O {[%clk 0:04:48.1]} 5...
Bg7 {[%clk 0:04:52.6]} 6. d4 {[%clk 0:04:47.2]} 6... d6 {[%clk 0:04:48.7]} 7. c3
{[%clk 0:04:40.6]} 7... Ne7 {[%clk 0:04:46.4]} 8. Qb3 {[%clk 0:04:38.3]} 8...
O-O {[%clk 0:04:44.3]} 9. h4 {[%clk 0:04:35.2]} 9... g4 {[%clk 0:04:41.4]} 10.
Nh2 {[%clk 0:04:34.3]} 10... Nec6 {[%clk 0:04:34.9]} 11. Bxf4 {[%clk 0:04:31.8]}
11... Qxh4 {[%clk 0:04:31.4]} 12. Nd2 {[%clk 0:04:21.7]} 12... g3 {[%clk
0:04:24.2]} 13. Nhf3 {[%clk 0:04:12.5]} 13... Qxf4 {[%clk 0:04:18.3]} 14. Rfe1
{[%clk 0:03:52.2]} 14... a5 {[%clk 0:04:06.4]} 15. Kf1 {[%clk 0:03:44.6]} 15...
a4 {[%clk 0:04:02.7]} 16. Qc2 {[%clk 0:03:41.8]} 16... Na5 {[%clk 0:03:05.9]}
17. Bd3 {[%clk 0:03:38.5]} 17... c5 {[%clk 0:02:56.2]} 18. d5 {[%clk 0:03:18.2]}
18... Nd7 {[%clk 0:02:21.4]} 19. Qxa4 {[%clk 0:03:06]} 19... Ne5 {[%clk
0:02:16.9]} 20. Be2 {[%clk 0:02:59.1]} 20... Qe3 {[%clk 0:02:10.9]} 0-1

[Event "Live Chess"]
[Site "Chess.com"]
[Date "2023.05.21"]
[Round "-"]
[White "Olisingapore"]
[Black "manthanit"]
[Result "1-0"]
[WhiteElo "1809"]
[BlackElo "1047"]
[TimeControl "300"]
[EndTime "17:59:17 PDT"]
[Termination "Olisingapore won by checkmate"]

1. d4 {[%clk 0:04:59.2]} 1... e6 {[%clk 0:04:58.6]} 2. c4 {[%clk 0:04:57.5]}
2... d5 {[%clk 0:04:58.1]} 3. g3 {[%clk 0:04:55.6]} 3... c6 {[%clk 0:04:56.1]}
4. Bg2 {[%clk 0:04:55.1]} 4... Nf6 {[%clk 0:04:52.3]} 5. Nf3 {[%clk 0:04:54.6]}
5... Bd6 {[%clk 0:04:51.7]} 6. O-O {[%clk 0:04:54.1]} 6... Bd7 {[%clk
0:04:51.1]} 7. Qc2 {[%clk 0:04:53.3]} 7... O-O {[%clk 0:04:48.2]} 8. Nfd2 {[%clk
0:04:49.3]} 8... e5 {[%clk 0:04:46.6]} 9. dxe5 {[%clk 0:04:46.8]} 9... Bxe5
{[%clk 0:04:45.2]} 10. cxd5 {[%clk 0:04:45.2]} 10... cxd5 {[%clk 0:04:43.6]} 11.
Nc3 {[%clk 0:04:44.6]} 11... Be6 {[%clk 0:04:37.2]} 12. Nf3 {[%clk 0:04:41.4]}
12... Bc7 {[%clk 0:04:33.2]} 13. Rd1 {[%clk 0:04:38.9]} 13... Ba5 {[%clk
0:04:12.5]} 14. Bg5 {[%clk 0:04:35.9]} 14... Bxc3 {[%clk 0:04:06.4]} 15. Qxc3
{[%clk 0:04:32.1]} 15... Qb6 {[%clk 0:04:03.1]} 16. Nd4 {[%clk 0:04:25.7]} 16...
Nbd7 {[%clk 0:03:57.9]} 17. Bxf6 {[%clk 0:04:16]} 17... Nxf6 {[%clk 0:03:56.6]}
18. Nxe6 {[%clk 0:04:14]} 18... fxe6 {[%clk 0:03:55.3]} 19. Rac1 {[%clk
0:03:45.8]} 19... Ne4 {[%clk 0:03:52.8]} 20. Bxe4 {[%clk 0:03:35.3]} 20... dxe4
{[%clk 0:03:41.9]} 21. Rd7 {[%clk 0:03:34]} 21... Qxf2+ {[%clk 0:03:38.2]} 22.
Kh1 {[%clk 0:03:31.6]} 22... Qxe2 {[%clk 0:03:22.5]} 23. Qxg7# {[%clk
0:03:28.3]} 1-0

[Event "Live Chess"]
[Site "Chess.com"]
[Date "2023.05.21"]
[Round "-"]
[White "OceanFloater"]
[Black "sanjesh_ananda"]
[Result "0-1"]
[WhiteElo "1015"]
[BlackElo "1349"]
[TimeControl "300"]
[EndTime "17:59:19 PDT"]
[Termination "sanjesh_ananda won by checkmate"]

1. e4 {[%clk 0:04:58.2]} 1... e5 {[%clk 0:04:59]} 2. Nf3 {[%clk 0:04:57.8]} 2...
Nc6 {[%clk 0:04:57.2]} 3. Bb5 {[%clk 0:04:57.1]} 3... Nf6 {[%clk 0:04:55.3]} 4.
Bxc6 {[%clk 0:04:55.8]} 4... dxc6 {[%clk 0:04:53.2]} 5. Nxe5 {[%clk 0:04:54.8]}
5... Qd4 {[%clk 0:04:51.8]} 6. Nf3 {[%clk 0:04:46]} 6... Nxe4 {[%clk 0:04:38.4]}
7. Qe2 {[%clk 0:04:43.1]} 7... Qd5 {[%clk 0:03:56.7]} 8. Nc3 {[%clk 0:04:40.3]}
8... Qe6 {[%clk 0:03:40.3]} 9. d3 {[%clk 0:04:35.8]} 9... Nxc3 {[%clk
0:03:33.8]} 10. Qxe6+ {[%clk 0:04:32.2]} 10... fxe6 {[%clk 0:03:29.9]} 11. bxc3
{[%clk 0:04:31.2]} 11... Bd6 {[%clk 0:03:23.9]} 12. O-O {[%clk 0:04:29.6]} 12...
O-O {[%clk 0:03:22.2]} 13. Re1 {[%clk 0:04:27.5]} 13... Bd7 {[%clk 0:03:15.4]}
14. d4 {[%clk 0:04:25.9]} 14... Rf5 {[%clk 0:03:02.8]} 15. Ne5 {[%clk
0:04:23.8]} 15... Bxe5 {[%clk 0:02:35]} 16. dxe5 {[%clk 0:04:21.7]} 16... Raf8
{[%clk 0:02:26.2]} 17. Ba3 {[%clk 0:04:20.9]} 17... R8f7 {[%clk 0:02:17.6]} 18.
f3 {[%clk 0:04:14.6]} 18... b6 {[%clk 0:02:09.6]} 19. Rad1 {[%clk 0:04:03.9]}
19... c5 {[%clk 0:02:02.3]} 20. Kf2 {[%clk 0:04:00.8]} 20... g5 {[%clk
0:01:51.8]} 21. g4 {[%clk 0:03:57.5]} 21... Rf4 {[%clk 0:01:45.1]} 22. Kg3
{[%clk 0:03:47.7]} 22... Rxf3+ {[%clk 0:01:43.1]} 23. Kg2 {[%clk 0:03:42.9]}
23... Bc6 {[%clk 0:01:29.6]} 24. Kg1 {[%clk 0:03:41.2]} 24... R7f4 {[%clk
0:01:21.2]} 25. Rd8+ {[%clk 0:03:36.1]} 25... Kg7 {[%clk 0:01:17.2]} 26. h3
{[%clk 0:03:29]} 26... Rxh3 {[%clk 0:01:10.8]} 27. Bc1 {[%clk 0:03:16.8]} 27...
Rh1# {[%clk 0:01:04.2]} 0-1

[Event "Live Chess"]
[Site "Chess.com"]
[Date "2023.05.21"]
[Round "-"]
[White "Doge_Dandolo"]
[Black "Hussamalhaidar"]
[Result "1-0"]
[WhiteElo "1930"]
[BlackElo "1091"]
[TimeControl "300"]
[EndTime "17:59:32 PDT"]
[Termination "Doge_Dandolo won by checkmate"]

1. Nf3 {[%clk 0:04:59]} 1... Nc6 {[%clk 0:04:55]} 2. e4 {[%clk 0:04:56.8]} 2...
b6 {[%clk 0:04:53.8]} 3. Bc4 {[%clk 0:04:54.6]} 3... Bb7 {[%clk 0:04:53.1]} 4.
d4 {[%clk 0:04:53.5]} 4... e6 {[%clk 0:04:47.4]} 5. Nc3 {[%clk 0:04:52.1]} 5...
Na5 {[%clk 0:04:37.6]} 6. Bd3 {[%clk 0:04:50]} 6... c5 {[%clk 0:04:30.9]} 7.
dxc5 {[%clk 0:04:44.7]} 7... Bxc5 {[%clk 0:04:27.3]} 8. Qe2 {[%clk 0:04:40.4]}
8... Nc6 {[%clk 0:04:18.4]} 9. Be3 {[%clk 0:04:37]} 9... Bb4 {[%clk 0:04:10]}
10. Bd2 {[%clk 0:04:33.2]} 10... Nf6 {[%clk 0:03:57.2]} 11. a3 {[%clk
0:04:29.7]} 11... Be7 {[%clk 0:03:50.2]} 12. O-O {[%clk 0:04:27.2]} 12... O-O
{[%clk 0:03:43.3]} 13. Rae1 {[%clk 0:04:22.1]} 13... d5 {[%clk 0:03:36.3]} 14.
e5 {[%clk 0:04:17.6]} 14... Ng4 {[%clk 0:03:20.9]} 15. h3 {[%clk 0:04:13.5]}
15... Nh6 {[%clk 0:03:04.7]} 16. Bxh6 {[%clk 0:04:10.5]} 16... gxh6 {[%clk
0:03:03.4]} 17. Qe3 {[%clk 0:04:09.2]} 17... Kh8 {[%clk 0:02:54.7]} 18. Qxh6
{[%clk 0:04:06.6]} 18... Nd4 {[%clk 0:02:22]} 19. Qxh7# {[%clk 0:04:03.6]} 1-0

[Event "Live Chess"]
[Site "Chess.com"]
[Date "2023.05.21"]
[Round "-"]
[White "CheckThis4"]
[Black "domrobson"]
[Result "1-0"]
[WhiteElo "2513"]
[BlackElo "1733"]
[TimeControl "300"]
[EndTime "17:59:32 PDT"]
[Termination "CheckThis4 won by resignation"]

1. d4 {[%clk 0:04:56]} 1... Nf6 {[%clk 0:04:58.9]} 2. Nc3 {[%clk 0:04:54.3]}
2... e6 {[%clk 0:04:57.7]} 3. e4 {[%clk 0:04:53.3]} 3... d5 {[%clk 0:04:57.1]}
4. e5 {[%clk 0:04:52.6]} 4... Nfd7 {[%clk 0:04:56.2]} 5. f4 {[%clk 0:04:51.7]}
5... c5 {[%clk 0:04:55.5]} 6. Nf3 {[%clk 0:04:51.2]} 6... Nc6 {[%clk 0:04:54.8]}
7. Be3 {[%clk 0:04:49.6]} 7... a6 {[%clk 0:04:54]} 8. Qd2 {[%clk 0:04:40]} 8...
Qb6 {[%clk 0:04:52.1]} 9. Na4 {[%clk 0:04:36.7]} 9... Qb4 {[%clk 0:04:46.9]} 10.
Nxc5 {[%clk 0:04:26.8]} 10... Bxc5 {[%clk 0:04:38.1]} 11. dxc5 {[%clk
0:04:24.5]} 11... Qxb2 {[%clk 0:04:35.4]} 12. Rd1 {[%clk 0:04:19]} 12... Qb4
{[%clk 0:04:32.8]} 13. c3 {[%clk 0:04:16.1]} 13... Qe4 {[%clk 0:04:31.5]} 14.
Bd3 {[%clk 0:04:13.7]} 14... Qa4 {[%clk 0:04:29.3]} 15. O-O {[%clk 0:04:11.9]}
15... O-O {[%clk 0:04:24.8]} 16. Bc2 {[%clk 0:04:04.3]} 16... Qxa2 {[%clk
0:04:16.3]} 17. Bxh7+ {[%clk 0:04:02.2]} 17... Kh8 {[%clk 0:04:10.5]} 18. Qxa2
{[%clk 0:04:02.1]} 1-0